lending/lending_fUSD_20240928
["ID","MTS","AMOUNT","RATE_DAILY","PERIOD"]
[339372523,1727503832579,-156.54,0.0001289,2]
[339372524,1727503832588,-156.54,0.0001289,2]
[339372525,1727503832598,-156.54,0.0001289,2]
[339372526,1727503832608,-8567.4521311,0.00012895,2]
[339372527,1727503832626,-318.8591862,0.00012895,2]
[339372528,1727503832635,-2539.9198009,0.00012895,2]
[339372529,1727503832643,-1048.27919064,0.00012899,2]
[339372530,1727503832653,-280.57259746,0.00012899,2]
[339372531,1727503832661,-297.03544905,0.00012899,2]
[339372532,1727503832671,-500.0,0.00012899,2]
[339372533,1727503832680,-222.30876211,0.00012899,2]
[339372534,1727503832689,-500.0,0.00012899,2]
[339372535,1727503832699,-500.0,0.00012899,2]
[339372536,1727503832708,-500.0,0.00012899,2]
[339372537,1727503832718,-500.0,0.00012899,2]
[339372538,1727503832727,-500.0,0.00012899,2]
[339372539,1727503832736,-500.0,0.00012899,2]
[339372540,1727503832745,-363.48085694,0.00012899,2]
[339372541,1727503832754,-500.0,0.00012899,2]
[339372542,1727503832763,-500.0,0.00012899,2]
[339372543,1727503832772,-500.0,0.00012899,2]
[339372544,1727503832782,-500.0,0.00012899,2]
[339372545,1727503832791,-500.0,0.00012899,2]
[339372546,1727503832800,-500.0,0.00012899,2]
[339372547,1727503832809,-500.0,0.00012899,2]
[339372548,1727503832818,-500.0,0.00012899,2]
[339372549,1727503832829,-500.0,0.00012899,2]
[339372550,1727503832838,-500.0,0.00012899,2]
[339372551,1727503832848,-500.0,0.00012899,2]
[339372552,1727503832859,-500.0,0.00012899,2]
[339372553,1727503832868,-500.0,0.00012899,2]
[339372554,1727503832877,-161.20554502,0.00012899,2]
[339372555,1727503832886,-668.0,0.000129,2]
[339372556,1727503832895,-144996.17621323,0.000129,2]
[339372557,1727503832906,-164797.4707637,0.000129,2]
[339372558,1727503833051,-725.48861933,0.000129,2]
[339372559,1727503833062,-396.64994585,0.000129,2]
[339372560,1727503834683,-30663.67105415,0.000129,2]
[339372561,1727503834768,-833.79793316,0.000129,2]
[339372562,1727503834779,-6325.6,0.000129,2]
[339372563,1727503834848,-23444.53147133,0.000129,2]
[339372573,1727503837821,-16406.21593119,0.000129,2]
[339372574,1727503837965,-6600.22403585,0.000129,2]
[339372606,1727503839875,-1050.1461,0.000129,2]
[339372625,1727503845684,-609.0,0.000129,2]
[339372626,1727503845694,-3223.13280069,0.000129,2]
[339372627,1727503845808,-43293.2649051,0.000129,2]
[339372628,1727503845995,-672.725,0.000129,2]
[339372629,1727503846007,-11500.68965428,0.000129,2]
[339372630,1727503846018,-1531.02345807,0.000129,2]
[339372632,1727504034403,220.63,0.00015,30]
[339372633,1727504042939,220.63,0.00015,30]
[339372634,1727504056129,220.62,0.00015,30]
[339372635,1727504077986,220.62,0.00015,30]
[339372636,1727504105737,174.21,0.00010959,2]
[339372637,1727504306633,150.0,0.00015,30]
[339372638,1727504322597,675.85,9.678e-05,2]
[339372659,1727504909753,642.05,9.634e-05,2]
[339372678,1727505031789,-500.0,0.00011164,2]
[339372679,1727505031800,-318.95666546,0.00011465,2]
[339372680,1727505031875,-429.26349483,0.00011465,2]
[339372681,1727505031887,-251.77983971,0.00011465,2]
[339372682,1727505031896,-250.0,0.00011467,2]
[339372683,1727505031905,-250.0,0.00011502,2]
[339372684,1727505031915,-168.16,0.00011533,2]
[339372685,1727505031924,-210.71,0.00011547,2]
[339372686,1727505031933,-1618.48,0.00011547,2]
[339372687,1727505031943,-275.25,0.00011589,2]
[339372688,1727505031953,-158.96,0.00011805,2]
[339372689,1727505031962,-158.96,0.00011811,2]
[339372690,1727505031972,-8.10366704,0.00011818,2]
[339372691,1727505031984,-150.85633296,0.00011818,2]
[339372692,1727505031993,-158.96,0.00011824,2]
[339372693,1727505032003,-105.28088485,0.00011831,2]
[339372694,1727505032014,-53.67911515,0.00011831,2]
[339372695,1727505032023,-158.96,0.00011838,2]
[339372696,1727505032034,-96.16830885,0.0001184,2]
[339372697,1727505032046,-269.0000005,0.0001184,2]
[339372698,1727505032060,-130.31169065,0.0001184,2]
[339372699,1727505032070,-158.96,0.00011844,2]
[339372700,1727505032079,-158.96,0.00011851,2]
[339372701,1727505032089,-158.96,0.00011857,2]
[339372702,1727505032099,-158.96,0.00011864,2]
[339372703,1727505032109,-642.05,0.00011898,2]
[339372704,1727505032119,-300.0,0.00012085,2]
[339372705,1727505032129,-6394.81318571,0.00012086,2]
[339372706,1727505032142,-587.06503412,0.00012086,2]
[339372707,1727505032153,-10502.86699838,0.00012086,2]
[339372708,1727505032162,-150.0,0.000121,2]
[339372709,1727505032172,-150.0,0.000121,2]
[339372710,1727505032181,-150.0,0.000121,2]
[339372711,1727505032191,-150.0,0.000121,2]
[339372712,1727505032200,-150.0,0.000121,2]
[339372713,1727505032209,-150.0,0.000121,2]
[339372714,1727505032219,-150.0,0.000121,2]
[339372715,1727505032227,-150.0,0.000121,2]
[339372716,1727505032237,-150.0,0.000121,2]
[339372717,1727505032247,-150.0,0.000121,2]
[339372718,1727505032256,-150.0,0.000121,2]
[339372719,1727505032267,-150.0,0.000121,2]
[339372720,1727505032276,-150.0,0.000121,2]
[339372721,1727505032285,-501.86511127,0.00012275,2]
[339372722,1727505032295,-503.38898162,0.00012275,2]
[339372723,1727505032304,-150.0,0.00012299,2]
[339372724,1727505032313,-4820.74072167,0.000123,2]
[339372725,1727505032323,-150.0,0.000123,2]
[339372726,1727505032333,-150.0,0.000123,2]
[339372727,1727505032342,-150.0,0.000123,2]
[339372728,1727505032354,-150.0,0.000123,2]
[339372729,1727505032364,-1714.420955,0.00012406,2]
[339372730,1727505032374,-194.72,0.00012406,2]
[339372731,1727505032383,-177.290207,0.00012406,2]
[339372732,1727505032392,-4763.382621,0.00012406,2]
[339372733,1727505032401,-162.531055,0.00012406,2]
[339372734,1727505032410,-495.48,0.00012432,2]
[339372735,1727505032420,-4954.041,0.00012432,2]
[339372736,1727505032429,-661.752,0.00012477,2]
[339372737,1727505032438,-1196.503,0.00012477,2]
[339372738,1727505032448,-807.0,0.00012477,2]
[339372739,1727505032457,-3349.0,0.00012477,2]
[339372740,1727505032467,-506.0,0.00012477,2]
[339372741,1727505032476,-150.0,0.000125,2]
[339372742,1727505032486,-150.0,0.000125,2]
[339372743,1727505032495,-150.0,0.000125,2]
[339372744,1727505032505,-150.0,0.000125,2]
[339372745,1727505032515,-150.0,0.000125,2]
[339372746,1727505032524,-150.0,0.000125,2]
[339372747,1727505032535,-150.0,0.000125,2]
[339372748,1727505032544,-150.0,0.000125,2]
[339372750,1727505032555,-1714.420955,0.00012561,2]
[339372751,1727505032565,-4763.382621,0.00012561,2]
[339372752,1727505032574,-162.531055,0.00012561,2]
[339372753,1727505032587,-150.0,0.000126,2]
[339372754,1727505032597,-150.0,0.000126,2]
[339372755,1727505032606,-150.0,0.000126,2]
[339372756,1727505032616,-150.0,0.000126,2]
[339372757,1727505032626,-150.0,0.000126,2]
[339372758,1727505032635,-150.0,0.000126,2]
[339372759,1727505032645,-150.0,0.000126,2]
[339372760,1727505032654,-180.0,0.00012621,2]
[339372761,1727505032664,-150.0,0.000127,2]
[339372762,1727505032673,-150.0,0.000127,2]
[339372763,1727505032683,-150.0,0.000127,2]
[339372764,1727505032692,-150.0,0.000127,2]
[339372765,1727505032701,-150.0,0.000127,2]
[339372766,1727505032711,-1714.420955,0.00012716,2]
[339372767,1727505032721,-4763.382621,0.00012716,2]
[339372768,1727505032730,-162.531055,0.00012716,2]
[339372769,1727505032740,-194.72,0.00012716,2]
[339372770,1727505032750,-177.290207,0.00012716,2]
[339372771,1727505032759,-1500.0,0.00012748,2]
[339372772,1727505032769,-609.758,0.00012793,2]
[339372773,1727505032778,-161.242,0.00012793,2]
[339372774,1727505032787,-1500.0,0.00012796,2]
[339372775,1727505032796,-500.0,0.00012797,2]
[339372776,1727505032806,-500.0,0.00012797,2]
[339372777,1727505033006,-4588.0272,0.000128,2]
[339372778,1727505033016,-41303.5204,0.000128,2]
[339372779,1727505033025,-150.0,0.000128,2]
[339372780,1727505033035,-216.53563708,0.000128,2]
[339372781,1727505033045,-195.00263995,0.000128,2]
[339372782,1727505033055,-170.44868747,0.000128,2]
[339372783,1727505033064,-1269.53436859,0.000128,2]
[339372784,1727505033074,-204.6978562,0.000128,2]
[339372785,1727505033084,-188.3834412,0.000128,2]
[339372786,1727505033093,-337.38376256,0.000128,2]
[339372787,1727505033102,-195.00263994,0.00012835,2]
[339372788,1727505033112,-204.69785619,0.00012835,2]
[339372789,1727505033121,-150.0,0.00012845,2]
[339372790,1727505033131,-150.0,0.00012846,2]
[339372791,1727505033140,-150.0,0.00012847,2]
[339372792,1727505033150,-150.0,0.00012848,2]
[339372793,1727505033159,-296.92311455,0.00012849,2]
[339372794,1727505033169,-1539.19723397,0.00012856,2]
[339372795,1727505033178,-1500.0,0.00012858,2]
[339372796,1727505033188,-1539.19723397,0.00012867,2]
[339372797,1727505033197,-195.00263994,0.00012869,2]
[339372798,1727505033207,-204.69785619,0.00012869,2]
[339372799,1727505033217,-10253.17790501,0.0001287,2]
[339372800,1727505033227,-1714.420955,0.00012871,2]
[339372801,1727505033237,-4763.382621,0.00012871,2]
[339372802,1727505033247,-162.531055,0.00012871,2]
[339372803,1727505033258,-500.0,0.00012873,2]
[339372804,1727505033267,-1539.19723397,0.00012878,2]
[339372805,1727505033277,-1539.19723397,0.00012889,2]
[339372806,1727505033287,-1000.0,0.00012898,2]
[339372807,1727505033296,-177.26570701,0.00012899,2]
[339372808,1727505033306,-598.0,0.000129,2]
[339372809,1727505033315,-234712.65584593,0.000129,2]
[339372810,1727505033324,-108513.2088314,0.000129,2]
[339372811,1727505033337,-1600.12153273,0.000129,2]
[339372812,1727505033348,-1438.04137625,0.000129,2]
[339372813,1727505033364,-16536.006,0.000129,2]
[339372814,1727505033376,-8057.72706137,0.000129,2]
[339372815,1727505033387,-409.80124548,0.000129,2]
[339372816,1727505033398,-11568.49422864,0.000129,2]
[339372817,1727505033409,-7682.06488073,0.000129,2]
[339372818,1727505033421,-266.95294903,0.000129,2]
[339372819,1727505033432,-710.26876103,0.000129,2]
[339372849,1727505037902,-529.0,0.000129,2]
[339372850,1727505037911,-471.0,0.000129,2]
[339372851,1727505038048,-1453619.95743777,0.000129,2]
[339372852,1727505038062,-481.9658807,0.000129,2]
[339372853,1727505038074,-304.56000055,0.000129,2]
[339372854,1727505038125,-373.72250086,0.000129,2]
[339372855,1727505038139,-1443.79352742,0.000129,2]
[339372856,1727505038152,-567.93728785,0.000129,2]
[339372857,1727505038164,-31253.03540949,0.000129,2]
[339372858,1727505038177,-1370.23840371,0.000129,2]
[339372859,1727505038189,-2944.34240302,0.000129,2]
[339372860,1727505038200,-9101.3781579,0.000129,2]
[339372861,1727505038212,-8693.51986952,0.000129,2]
[339372862,1727505038226,-1381.24087936,0.000129,2]
[339372863,1727505038306,-33364.43693631,0.000129,2]
[339372864,1727505038317,-32072.35224603,0.000129,2]
[339372868,1727505040159,-4439.27591135,0.000129,2]
[339372869,1727505040170,-1459.91678189,0.000129,2]
[339372870,1727505043061,-158.383,0.00012577,2]
[339372871,1727505043071,-265.58774858,0.000129,2]
[339372872,1727505043141,-635.21123001,0.000129,2]
[339372875,1727505045772,-10453.70827459,0.000129,2]
[339372876,1727505045917,-39786.82373249,0.000129,2]
[339372877,1727505045997,-4221.14887473,0.000129,2]
[339372878,1727505046076,-359.89413236,0.000129,2]
[339372899,1727505417768,1050.0,0.00011,2]
[339372900,1727505546796,255.0,0.00015,30]
[339372901,1727505582918,577.84,9.96e-05,2]
[339372967,1727506232067,-250.0,0.00011682,2]
[339372968,1727506232078,-185.71,0.00011702,2]
[339372969,1727506232089,-387.69311724,0.00011702,2]
[339372970,1727506232100,-82.47067533,0.00011709,2]
[339372971,1727506232294,-123.07932467,0.00011709,2]
[339372972,1727506232304,-743.50836033,0.00011709,2]
[339372973,1727506232333,-3660.97053496,0.00011709,2]
[339372974,1727506232372,-844.63596783,0.00011709,2]
[339372975,1727506232501,-1890.83467298,0.00011709,2]
[339372996,1727506238148,-838.7604639,0.00011709,2]
[339372998,1727506238161,-614.4964,0.00011759,2]
[339372999,1727506238172,-222.0,0.00011841,2]
[339373000,1727506238182,-255.0,0.00011841,2]
[339373001,1727506238194,-250.0,0.00011841,2]
[339373002,1727506238204,-288.0,0.00011858,2]
[339373003,1727506238214,-300.0,0.00011858,2]
[339373004,1727506238224,-150.0,0.00011863,2]
[339373005,1727506238237,-329.93,0.00011945,2]
[339373006,1727506238247,-1000.0,0.00011989,2]
[339373007,1727506238257,-577.84,0.00012224,2]
[339373008,1727506238267,-173.317537,0.00012406,2]
[339373009,1727506238278,-1476.159656,0.00012406,2]
[339373010,1727506238288,-2351.15933434,0.000125,3]
[339373011,1727506238300,-654.84066566,0.000125,3]
[339373012,1727506238310,-226.9,0.000125,2]
[339373013,1727506238323,-226.9,0.000125,2]
[339373014,1727506238333,-226.9,0.000125,2]
[339373015,1727506238344,-226.9,0.000125,2]
[339373016,1727506238355,-226.9,0.000125,2]
[339373017,1727506238366,-226.9,0.000125,2]
[339373018,1727506238376,-226.9,0.000125,2]
[339373019,1727506238386,-226.9,0.000125,2]
[339373020,1727506238398,-226.9,0.000125,2]
[339373021,1727506238408,-226.9,0.000125,2]
[339373022,1727506238419,-121.66712099,0.000125,2]
[339373023,1727506238432,-105.23287901,0.000125,2]
[339373024,1727506238443,-226.9,0.000125,2]
[339373025,1727506238453,-226.9,0.000125,2]
[339373026,1727506238464,-226.9,0.000125,2]
[339373027,1727506238475,-226.9,0.000125,2]
[339373028,1727506238485,-226.9,0.000125,2]
[339373029,1727506238495,-9.08759941,0.000125,2]
[339373030,1727506238520,-217.81240059,0.000125,2]
[339373031,1727506238530,-329.93,0.00012542,2]
[339373032,1727506238542,-173.317537,0.00012561,2]
[339373033,1727506238552,-278.94006241,0.00012561,2]
[339373034,1727506238568,-1042.82955653,0.00012561,2]
[339373044,1727506240077,-154.39003706,0.00012561,2]
[339373045,1727506240087,-407.14,0.00012577,2]
[339373046,1727506240097,-800.826,0.00012577,2]
[339373047,1727506240107,-150.019,0.00012577,2]
[339373048,1727506240117,-226.9,0.000126,2]
[339373049,1727506240128,-226.9,0.000126,2]
[339373050,1727506240138,-226.9,0.000126,2]
[339373051,1727506240148,-173.317537,0.00012716,2]
[339373052,1727506240159,-1476.159656,0.00012716,2]
[339373053,1727506240169,-500.0,0.00012797,2]
[339373054,1727506240180,-150.0,0.000128,2]
[339373055,1727506240190,-150.0,0.000128,2]
[339373056,1727506240200,-150.0,0.000128,2]
[339373057,1727506240210,-150.0,0.000128,2]
[339373058,1727506240221,-150.0,0.000128,2]
[339373059,1727506240232,-150.0,0.000128,2]
[339373060,1727506240244,-150.0,0.000128,2]
[339373061,1727506240255,-150.0,0.000128,2]
[339373062,1727506240265,-226.9,0.000128,2]
[339373063,1727506240275,-226.9,0.000128,2]
[339373064,1727506240286,-226.9,0.000128,2]
[339373065,1727506240295,-226.9,0.000128,2]
[339373066,1727506240305,-226.9,0.000128,2]
[339373067,1727506240317,-155.709386,0.000128,2]
[339373068,1727506240326,-170.44868746,0.000128,2]
[339373069,1727506240336,-333.0,0.00012819,2]
[339373070,1727506240346,-355.0,0.00012819,2]
[339373071,1727506240356,-309.0345287,0.0001282,2]
[339373072,1727506240365,-180.0,0.00012861,2]
[339373073,1727506240375,-173.317537,0.00012871,2]
[339373074,1727506240386,-1476.159656,0.00012871,2]
[339373075,1727506240396,-500.0,0.00012873,2]
[339373076,1727506240406,-1690.43707809,0.00012889,2]
[339373077,1727506240417,-301.90165007,0.00012889,2]
[339373088,1727506244078,-226.9,0.000125,2]
[339373090,1727506244089,-53.02356222,0.00012889,2]
[339373096,1727506244228,-132.88178771,0.00012889,2]
[339373097,1727506244238,-161.242,0.00012889,2]
[339373098,1727506244248,-157.70564864,0.00012889,2]
[339373099,1727506244260,-2627.01912187,0.00012889,2]
[339373100,1727506244271,-2942.08280834,0.000129,2]
[339373101,1727506244283,-500.0,0.000129,2]
[339373102,1727506244295,-31193.36239075,0.000129,2]
[339373103,1727506244409,-3932.95846468,0.000129,2]
[339373104,1727506244458,-759.4936,0.000129,2]
[339373107,1727506246334,-503.099437,0.00012406,2]
[339373108,1727506246344,-15825.21892553,0.000129,2]
[339373118,1727506329946,555.41,9.997e-05,2]
[339373119,1727506380294,240.38,0.00010959,2]
[339373123,1727506735715,174.06260527,0.00015,30]
[339373127,1727506875922,527.63,9.859e-05,2]
[339373133,1727507094715,200.0,0.00014,30]
[339373137,1727507230733,1050.0,0.00011,2]
[339373526,1727507416791,501.24,9.68e-05,2]
[339373533,1727507432288,-185.71,0.00011581,2]
[339373534,1727507432298,-150.0,0.00011589,2]
[339373535,1727507432307,-150.00000001,0.00011589,2]
[339373536,1727507432317,-150.0,0.00011589,2]
[339373537,1727507432326,-500.0,0.00011616,2]
[339373538,1727507432336,-197.95,0.00011648,2]
[339373539,1727507432345,-171.56,0.00011652,2]
[339373540,1727507432355,-1911.65999999,0.0001167,2]
[339373541,1727507432442,-320.66312088,0.0001167,2]
[339373542,1727507432493,-518.67687913,0.0001167,2]
[339373543,1727507432503,-201.88,0.00011681,2]
[339373544,1727507432512,-396.71,0.00011685,2]
[339373545,1727507432522,-250.0,0.00011754,2]
[339373546,1727507432531,-250.0,0.00011756,2]
[339373547,1727507432540,-168.16,0.00011793,2]
[339373548,1727507432550,-128.61206381,0.00011848,2]
[339373549,1727507432561,-325.14793619,0.00011848,2]
[339373550,1727507432572,-213.14326995,0.00011899,2]
[339373551,1727507432587,-786.85673005,0.00011899,2]
[339373552,1727507432597,-150.0,0.00011911,2]
[339373553,1727507432609,-263.14326995,0.00011911,2]
[339373554,1727507432622,-236.84673005,0.00011911,2]
[339373555,1727507432631,-122.31859697,0.00011944,2]
[339373556,1727507432643,-378.92140303,0.00011944,2]
[339373557,1727507432851,-417.39,0.0001198,2]
[339373558,1727507432862,-150.99,0.0001198,2]
[339373559,1727507432871,-300.0,0.00012122,2]
[339373560,1727507432881,-358.28,0.000122,2]
[339373561,1727507432890,-358.04,0.000122,2]
[339373562,1727507432899,-383.72,0.000122,2]
[339373563,1727507432908,-197.95,0.0001223,2]
[339373564,1727507432917,-150.0,0.00012233,2]
[339373565,1727507432926,-150.0,0.00012233,2]
[339373566,1727507432935,-358.28,0.00012278,2]
[339373567,1727507432944,-358.28,0.00012278,2]
[339373568,1727507432954,-759.95,0.000123,2]
[339373569,1727507432964,-137.15544595,0.000123,2]
[339373570,1727507432975,-221.12455405,0.000123,2]
[339373571,1727507432984,-753.95,0.000123,2]
[339373572,1727507432993,-358.28,0.000123,2]
[339373573,1727507433003,-358.28,0.000123,2]
[339373574,1727507433012,-753.95,0.000123,2]
[339373575,1727507433021,-358.28,0.000123,2]
[339373576,1727507433030,-162.65,0.00012445,2]
[339373577,1727507433040,-167.85,0.00012445,2]
[339373578,1727507433049,-150.0,0.00012555,2]
[339373579,1727507433059,-503.099437,0.00012561,2]
[339373580,1727507433068,-585.743,0.00012577,2]
[339373581,1727507433077,-150.0,0.000126,2]
[339373582,1727507433086,-150.0,0.000126,2]
[339373583,1727507433096,-150.0,0.000126,2]
[339373584,1727507433105,-150.0,0.000126,2]
[339373585,1727507433114,-226.9,0.000126,2]
[339373586,1727507433123,-150.0,0.000127,2]
[339373587,1727507433133,-150.0,0.000127,2]
[339373588,1727507433142,-150.0,0.000127,2]
[339373589,1727507433152,-150.0,0.000127,2]
[339373590,1727507433161,-503.099437,0.00012716,2]
[339373591,1727507433171,-383.72,0.00012726,2]
[339373592,1727507433180,-377.92172268,0.00012786,2]
[339373593,1727507433189,-150.0,0.00012786,2]
[339373594,1727507433199,-200.0,0.0001279,2]
[339373595,1727507433209,-200.0,0.00012797,2]
[339373596,1727507433218,-500.0,0.00012797,2]
[339373597,1727507433228,-200.0,0.00012797,2]
[339373598,1727507433237,-200.0,0.00012799,2]
[339373599,1727507433247,-1089.1729,0.00012799,2]
[339373600,1727507433256,-1349.4054,0.000128,2]
[339373601,1727507433266,-3204.209,0.000128,2]
[339373602,1727507433275,-2549.77886512,0.000128,2]
[339373612,1727507438569,-457.2,0.000128,2]
[339373613,1727507438823,-4469.50063488,0.000128,2]
[339373614,1727507438832,-1000.0,0.000128,2]
[339373615,1727507438842,-789.7346,0.000128,2]
[339373616,1727507438851,-160.36941333,0.000128,2]
[339373617,1727507438860,-210.9247406,0.000128,2]
[339373620,1727507440496,-87.4052594,0.000128,2]
[339373621,1727507440506,-150.0,0.000128,2]
[339373622,1727507440514,-29.1547406,0.000128,2]
[339373623,1727507440648,-125.15654846,0.000128,2]
[339373624,1727507440659,-479.8972285,0.000128,2]
[339373625,1727507440671,-1644.65911544,0.000128,2]
[339373630,1727507443429,-383.72,0.00012726,2]
[339373631,1727507443439,-39.04655606,0.000128,2]
[339373632,1727507443449,-336.80834394,0.000128,2]
[339373633,1727507443719,-2340.50325606,0.000128,2]
[339373635,1727507443728,-162.40780799,0.000128,2]
[339373637,1727507443739,-153.78154695,0.000128,2]
[339373639,1727507443750,-153.78154695,0.000128,2]
[339373642,1727507443760,-153.78154695,0.000128,2]
[339373643,1727507443769,-153.78154695,0.000128,2]
[339373645,1727507443778,-153.78154695,0.000128,2]
[339373647,1727507443788,-153.78154695,0.000128,2]
[339373649,1727507443797,-153.78154695,0.000128,2]
[339373651,1727507443806,-153.78154695,0.000128,2]
[339373653,1727507443817,-153.78154695,0.000128,2]
[339373655,1727507443827,-153.78154695,0.000128,2]
[339373657,1727507443836,-154.28,0.000128,2]
[339373659,1727507443847,-157.47573496,0.000128,2]
[339373661,1727507443856,-157.47573496,0.000128,2]
[339373663,1727507443865,-157.47573496,0.000128,2]
[339373665,1727507443875,-157.47573496,0.000128,2]
[339373667,1727507443884,-157.47573496,0.000128,2]
[339373669,1727507443894,-157.47573496,0.000128,2]
[339373670,1727507443903,-157.47573496,0.000128,2]
[339373671,1727507443913,-157.47573496,0.000128,2]
[339373672,1727507443922,-157.97,0.000128,2]
[339373673,1727507443931,-18.17416526,0.000128,2]
[339373677,1727507446513,-134.24159556,0.000128,2]
[339373678,1727507446522,-152.41576082,0.000128,2]
[339373679,1727507446532,-152.41576082,0.000128,2]
[339373680,1727507446542,-152.41576082,0.000128,2]
[339373681,1727507446551,-152.41576082,0.000128,2]
[339373682,1727507446560,-152.41576082,0.000128,2]
[339373683,1727507446569,-152.41576082,0.000128,2]
[339373684,1727507446583,-152.91,0.000128,2]
[339373685,1727507446592,-204.70241534,0.000128,2]
[339373686,1727507446602,-5244.43977251,0.000128,2]
[339373687,1727507446611,-572.211,0.00012811,2]
[339373688,1727507446621,-161.242,0.00012811,2]
[339373689,1727507446630,-197.95,0.00012813,2]
[339373690,1727507446639,-450.3104,0.00012849,2]
[339373691,1727507446651,-213.66776704,0.0001286,2]
[339373692,1727507446660,-503.099437,0.00012871,2]
[339373693,1727507446670,-500.0,0.00012873,2]
[339373694,1727507446679,-150.0,0.00012877,2]
[339373695,1727507446688,-150.0,0.00012877,2]
[339373696,1727507446698,-293.5441055,0.00012893,2]
[339373697,1727507446707,-338.27930064,0.00012898,2]
[339373698,1727507446717,-557.42008199,0.00012898,2]
[339373700,1727507446727,-26560.17795589,0.000129,2]
[339373701,1727507446739,-1320.45,0.000129,2]
[339373702,1727507446751,-689.83822686,0.000129,2]
[339373703,1727507446762,-7773.72815104,0.000129,2]
[339373705,1727507936677,488.14,9.918e-05,2]
[339373831,1727508520295,463.73,9.407e-05,2]
[339373847,1727508631500,-199.49,0.00011498,2]
[339373848,1727508631509,-171.56,0.00011549,2]
[339373849,1727508631522,-1078.95,0.00011572,2]
[339373852,1727508631550,-1672.05,0.00011572,2]
[339373854,1727508631560,-8699.33293521,0.00011589,10]
[339373856,1727508631572,-397.7418011,0.00011589,10]
[339373857,1727508631584,-1029.07753147,0.00011589,10]
[339373859,1727508631596,-8971.18423279,0.00011589,10]
[339373860,1727508631608,-16534.59530972,0.00011589,10]
[339373861,1727508631617,-150.0,0.00011589,2]
[339373862,1727508631627,-150.0,0.00011589,2]
[339373863,1727508631637,-250.0,0.00011597,2]
[339373864,1727508631646,-251.68,0.00011648,2]
[339373865,1727508631656,-250.0,0.00011652,2]
[339373866,1727508631666,-463.73,0.00011671,2]
[339373867,1727508631676,-150.0,0.00011711,2]
[339373868,1727508631686,-499.99,0.00011711,2]
[339373869,1727508631695,-20597.38,0.00011712,2]
[339373870,1727508631705,-420.36,0.00011764,2]
[339373871,1727508631715,-197.97,0.00011794,2]
[339373872,1727508631725,-700.0,0.000119,4]
[339373873,1727508631735,-1050.49342821,0.00011965,2]
[339373874,1727508631745,-501.18059616,0.00012,2]
[339373875,1727508631754,-1500.0,0.00012,4]
[339373876,1727508631763,-1000.0,0.00012035,2]
[339373877,1727508631773,-152.23,0.00012035,2]
[339373878,1727508631782,-1601.49051415,0.00012083,2]
[339373879,1727508631791,-2300.0,0.000121,4]
[339373880,1727508631801,-3100.0,0.000122,4]
[339373881,1727508631811,-3800.0,0.000123,4]
[339373882,1727508631821,-700.0,0.000124,4]
[339373883,1727508631831,-167.699812,0.00012406,2]
[339373884,1727508631841,-194.72,0.00012406,2]
[339373885,1727508631850,-983.333545,0.00012406,2]
[339373886,1727508631860,-169.910632,0.00012406,2]
[339373887,1727508631869,-4250.0,0.00012463,7]